[Event "*** Titled Tuesday Blitz"]
[Site "Chess.com"]
[Date "2020.12.01"]
[Round "6"]
[White "Susal_De_Silva"]
[Black "Sanan_Sjugirov"]
[Result "1-0"]
[WhiteElo "2664"]
[BlackElo "2867"]
[TimeControl "180+1"]
[EndTime "11:06:22 PST"]
[Termination "Susal_De_Silva won on time"]

1. e4 {[%clk 0:03:00.9]} 1... c5 {[%clk 0:02:58]} 2. Nf3 {[%clk 0:03:01.1]} 2...
e6 {[%clk 0:02:57.7]} 3. d4 {[%clk 0:03:01.2]} 3... cxd4 {[%clk 0:02:58.6]} 4.
Nxd4 {[%clk 0:03:02.1]} 4... Nc6 {[%clk 0:02:59.2]} 5. Be2 {[%clk 0:03:02]} 5...
Nf6 {[%clk 0:02:57.3]} 6. Nc3 {[%clk 0:03:01.8]} 6... Qc7 {[%clk 0:02:46.5]} 7.
O-O {[%clk 0:03:00.9]} 7... a6 {[%clk 0:02:46.5]} 8. Be3 {[%clk 0:03:00.7]} 8...
Be7 {[%clk 0:02:43.1]} 9. a4 {[%clk 0:02:58.7]} 9... O-O {[%clk 0:02:41.5]} 10.
f4 {[%clk 0:02:58.9]} 10... d6 {[%clk 0:02:41.7]} 11. Kh1 {[%clk 0:02:58.4]}
11... Nxd4 {[%clk 0:02:36.3]} 12. Bxd4 {[%clk 0:02:58.2]} 12... Bd7 {[%clk
0:02:36.6]} 13. Qe1 {[%clk 0:02:58.2]} 13... Bc6 {[%clk 0:02:14.7]} 14. Qg3
{[%clk 0:02:56.3]} 14... g6 {[%clk 0:02:04]} 15. Bd3 {[%clk 0:02:49.1]} 15...
Nh5 {[%clk 0:02:02]} 16. Qh3 {[%clk 0:02:43.9]} 16... e5 {[%clk 0:01:56.6]} 17.
Be3 {[%clk 0:02:38.3]} 17... Nxf4 {[%clk 0:01:52.2]} 18. Bxf4 {[%clk 0:02:39.2]}
18... exf4 {[%clk 0:01:53.1]} 19. Rxf4 {[%clk 0:02:40.1]} 19... Bg5 {[%clk
0:01:51.4]} 20. Rf3 {[%clk 0:02:19.4]} 20... Qe7 {[%clk 0:01:35.6]} 21. Raf1
{[%clk 0:02:16]} 21... Kg7 {[%clk 0:01:28.7]} 22. Bc4 {[%clk 0:02:11.9]} 22...
f6 {[%clk 0:01:28.6]} 23. Qg3 {[%clk 0:01:58.6]} 23... Rac8 {[%clk 0:01:18.9]}
24. Bd3 {[%clk 0:01:51.2]} 24... Qe5 {[%clk 0:01:16.8]} 25. Qf2 {[%clk
0:01:45.5]} 25... Rc7 {[%clk 0:01:11.7]} 26. Qb6 {[%clk 0:01:40.8]} 26... Rfc8
{[%clk 0:01:08.7]} 27. Nd5 {[%clk 0:01:31]} 27... Bxd5 {[%clk 0:01:05.1]} 28.
exd5 {[%clk 0:01:31.9]} 28... Qxd5 {[%clk 0:01:02.9]} 29. Re1 {[%clk 0:01:30.1]}
29... Qc5 {[%clk 0:00:57.1]} 30. Qb3 {[%clk 0:01:26.8]} 30... d5 {[%clk
0:00:54.6]} 31. h3 {[%clk 0:01:01]} 31... Rd8 {[%clk 0:00:51]} 32. Rff1 {[%clk
0:00:55.3]} 32... Be3 {[%clk 0:00:40.9]} 33. Bxg6 {[%clk 0:00:45.7]} 33... hxg6
{[%clk 0:00:28.9]} 34. Rxe3 {[%clk 0:00:45.2]} 34... d4 {[%clk 0:00:22.4]} 35.
Ref3 {[%clk 0:00:43.9]} 35... Qxc2 {[%clk 0:00:18.2]} 36. Qb6 {[%clk 0:00:36.8]}
36... Qc6 {[%clk 0:00:15.8]} 37. Qb3 {[%clk 0:00:21.9]} 37... Rd6 {[%clk
0:00:13.8]} 38. Qd3 {[%clk 0:00:21]} 38... Qc2 {[%clk 0:00:10.1]} 39. Qa3 {[%clk
0:00:18.4]} 39... Rcd7 {[%clk 0:00:08.9]} 40. R1f2 {[%clk 0:00:15.7]} 40... Qe4
{[%clk 0:00:07.1]} 41. Rf4 {[%clk 0:00:15.1]} 41... Qe5 {[%clk 0:00:06.2]} 42.
Qd3 {[%clk 0:00:12.7]} 42... Qe3 {[%clk 0:00:06.2]} 43. Qb1 {[%clk 0:00:12]}
43... d3 {[%clk 0:00:05.9]} 44. R4f3 {[%clk 0:00:12.5]} 44... Qe4 {[%clk
0:00:05.7]} 45. Rd2 {[%clk 0:00:12.5]} 45... Rd4 {[%clk 0:00:04.7]} 46. Qd1
{[%clk 0:00:12.5]} 46... g5 {[%clk 0:00:04.2]} 47. Rf1 {[%clk 0:00:11.7]} 47...
b5 {[%clk 0:00:04.2]} 48. Rdf2 {[%clk 0:00:11.9]} 48... R4d6 {[%clk 0:00:03.4]}
49. Qd2 {[%clk 0:00:12.4]} 49... Qd4 {[%clk 0:00:03.3]} 50. Re1 {[%clk
0:00:11.5]} 50... Qd5 {[%clk 0:00:03.5]} 51. a5 {[%clk 0:00:11.5]} 51... Re6
{[%clk 0:00:03.8]} 52. Ref1 {[%clk 0:00:11.4]} 52... Rde7 {[%clk 0:00:04]} 53.
Rf3 {[%clk 0:00:10.8]} 53... Rd6 {[%clk 0:00:02.1]} 54. Rf5 {[%clk 0:00:09.3]}
54... Qe6 {[%clk 0:00:02.1]} 55. R5f3 {[%clk 0:00:08.5]} 55... Qe2 {[%clk
0:00:02.2]} 56. Qb4 {[%clk 0:00:08]} 56... Red7 {[%clk 0:00:02.1]} 57. R3f2
{[%clk 0:00:05.2]} 57... Qe3 {[%clk 0:00:02.3]} 58. Qc3 {[%clk 0:00:04.9]} 58...
Qe4 {[%clk 0:00:02.2]} 59. Rxf6 {[%clk 0:00:05.1]} 1-0

[Event "*** Titled Tuesday Blitz"]
[Site "Chess.com"]
[Date "2020.12.01"]
[Round "6"]
[White "Shuvalov"]
[Black "c_r_e_e_p_e_r"]
[Result "1-0"]
[WhiteElo "2438"]
[BlackElo "2306"]
[TimeControl "180+1"]
[EndTime "11:06:22 PST"]
[Termination "Shuvalov won by checkmate"]

1. e4 {[%clk 0:02:52.2]} 1... e5 {[%clk 0:03:00.3]} 2. Nf3 {[%clk 0:02:51.9]}
2... Nc6 {[%clk 0:03:00.1]} 3. Bc4 {[%clk 0:02:51.8]} 3... Bc5 {[%clk
0:02:59.3]} 4. c3 {[%clk 0:02:49.4]} 4... Nf6 {[%clk 0:02:56.7]} 5. d4 {[%clk
0:02:49.2]} 5... exd4 {[%clk 0:02:57.5]} 6. cxd4 {[%clk 0:02:49.7]} 6... Bb4+
{[%clk 0:02:58]} 7. Nc3 {[%clk 0:02:50.1]} 7... Nxe4 {[%clk 0:02:55.3]} 8. O-O
{[%clk 0:02:49.7]} 8... Bxc3 {[%clk 0:02:47.5]} 9. d5 {[%clk 0:02:49.5]} 9...
Bf6 {[%clk 0:02:37.3]} 10. Re1 {[%clk 0:02:44.8]} 10... O-O {[%clk 0:02:32.1]}
11. Rxe4 {[%clk 0:02:43.3]} 11... Ne7 {[%clk 0:02:30.3]} 12. d6 {[%clk
0:02:39.6]} 12... Nf5 {[%clk 0:02:25.6]} 13. Bf4 {[%clk 0:02:35.9]} 13... Bxb2
{[%clk 0:02:17.9]} 14. Rb1 {[%clk 0:02:23.5]} 14... Ba3 {[%clk 0:02:09.8]} 15.
dxc7 {[%clk 0:02:20.5]} 15... Qf6 {[%clk 0:02:09.1]} 16. Bg5 {[%clk 0:02:11.7]}
16... Qg6 {[%clk 0:02:01.8]} 17. Rg4 {[%clk 0:01:59.4]} 17... d5 {[%clk
0:01:56.3]} 18. Ne5 {[%clk 0:01:51.9]} 18... Qe6 {[%clk 0:01:45.8]} 19. Qxd5
{[%clk 0:01:38.3]} 19... Qxd5 {[%clk 0:01:45.1]} 20. Bxd5 {[%clk 0:01:39.2]}
20... Bd6 {[%clk 0:01:40.1]} 21. Nf3 {[%clk 0:01:22.4]} 21... Bxc7 {[%clk
0:01:26.2]} 22. Bf6 {[%clk 0:01:18.5]} 22... Kh8 {[%clk 0:01:22.3]} 23. Ba1
{[%clk 0:01:12.7]} 23... f6 {[%clk 0:01:18.7]} 24. Bxb7 {[%clk 0:01:08.8]} 24...
Rb8 {[%clk 0:01:16.3]} 25. Rgb4 {[%clk 0:01:08.6]} 25... Bd6 {[%clk 0:01:11]}
26. R4b3 {[%clk 0:01:05.8]} 26... Be6 {[%clk 0:01:10.4]} 27. Rd3 {[%clk
0:01:01.1]} 27... Rf7 {[%clk 0:01:05.2]} 28. g4 {[%clk 0:00:58.6]} 28... Rfxb7
{[%clk 0:00:57.2]} 29. Rxb7 {[%clk 0:00:57.9]} 29... Rxb7 {[%clk 0:00:57.3]} 30.
gxf5 {[%clk 0:00:58.3]} 30... Bxa2 {[%clk 0:00:38.8]} 31. Rxd6 {[%clk
0:00:52.7]} 31... Rb1+ {[%clk 0:00:39.2]} 32. Kg2 {[%clk 0:00:52.3]} 32... Rxa1
{[%clk 0:00:39.7]} 33. Rd8+ {[%clk 0:00:51.9]} 33... Bg8 {[%clk 0:00:39.4]} 34.
Nd4 {[%clk 0:00:34]} 34... Ra5 {[%clk 0:00:39.2]} 35. Nc6 {[%clk 0:00:30.6]}
35... Rd5 {[%clk 0:00:38.8]} 36. Rxg8+ {[%clk 0:00:28.6]} 36... Kxg8 {[%clk
0:00:38.3]} 37. Ne7+ {[%clk 0:00:29.5]} 37... Kf7 {[%clk 0:00:38.6]} 38. Nxd5
{[%clk 0:00:30.4]} 38... g6 {[%clk 0:00:37.3]} 39. fxg6+ {[%clk 0:00:28.6]}
39... hxg6 {[%clk 0:00:37.6]} 40. Kf3 {[%clk 0:00:29.2]} 40... Ke6 {[%clk
0:00:37]} 41. Ke4 {[%clk 0:00:29.4]} 41... f5+ {[%clk 0:00:31.6]} 42. Kd4 {[%clk
0:00:29.4]} 42... g5 {[%clk 0:00:32.3]} 43. h3 {[%clk 0:00:26.3]} 43... a5
{[%clk 0:00:27.9]} 44. Nb6 {[%clk 0:00:23]} 44... Kf6 {[%clk 0:00:23.9]} 45. Ke3
{[%clk 0:00:20]} 45... Kg6 {[%clk 0:00:21.1]} 46. Kf3 {[%clk 0:00:20.1]} 46...
Kh5 {[%clk 0:00:21.2]} 47. Kg3 {[%clk 0:00:20.3]} 47... f4+ {[%clk 0:00:14.5]}
48. Kg2 {[%clk 0:00:19]} 48... Kh4 {[%clk 0:00:14.9]} 49. Na4 {[%clk 0:00:18.4]}
49... g4 {[%clk 0:00:14.8]} 50. hxg4 {[%clk 0:00:18.5]} 50... Kxg4 {[%clk
0:00:15.3]} 51. Nc3 {[%clk 0:00:18.3]} 51... f3+ {[%clk 0:00:14.7]} 52. Kh2
{[%clk 0:00:18.5]} 52... Kf4 {[%clk 0:00:13.8]} 53. Kh3 {[%clk 0:00:18.4]} 53...
Ke5 {[%clk 0:00:07.1]} 54. Kg3 {[%clk 0:00:18.2]} 54... Kd4 {[%clk 0:00:07.7]}
55. Na4 {[%clk 0:00:17.7]} 55... Ke4 {[%clk 0:00:07.5]} 56. Kg4 {[%clk
0:00:17.3]} 56... Ke5 {[%clk 0:00:04]} 57. Kxf3 {[%clk 0:00:17.5]} 57... Kf5
{[%clk 0:00:04.5]} 58. Ke3 {[%clk 0:00:17.6]} 58... Ke5 {[%clk 0:00:04.5]} 59.
f4+ {[%clk 0:00:17.9]} 59... Kf5 {[%clk 0:00:05]} 60. Kf3 {[%clk 0:00:18.3]}
60... Kf6 {[%clk 0:00:05.5]} 61. Ke4 {[%clk 0:00:18.8]} 61... Ke6 {[%clk
0:00:06]} 62. f5+ {[%clk 0:00:19]} 62... Kf6 {[%clk 0:00:06.7]} 63. Kf4 {[%clk
0:00:19.2]} 63... Kf7 {[%clk 0:00:07.4]} 64. Ke5 {[%clk 0:00:19.6]} 64... Ke7
{[%clk 0:00:08.1]} 65. f6+ {[%clk 0:00:19.8]} 65... Kf7 {[%clk 0:00:08.5]} 66.
Kf5 {[%clk 0:00:20.2]} 66... Kf8 {[%clk 0:00:09]} 67. Ke6 {[%clk 0:00:20.1]}
67... Ke8 {[%clk 0:00:09.7]} 68. Nc5 {[%clk 0:00:14.9]} 68... Kd8 {[%clk
0:00:05.8]} 69. f7 {[%clk 0:00:14.3]} 69... a4 {[%clk 0:00:06]} 70. f8=Q+ {[%clk
0:00:14.4]} 70... Kc7 {[%clk 0:00:06.8]} 71. Qd6+ {[%clk 0:00:14.7]} 71... Kc8
{[%clk 0:00:06]} 72. Qd7+ {[%clk 0:00:15]} 72... Kb8 {[%clk 0:00:06.1]} 73. Qb7#
{[%clk 0:00:15.9]} 1-0

[Event "*** Titled Tuesday Blitz"]
[Site "Chess.com"]
[Date "2020.12.01"]
[Round "6"]
[White "banane_verte"]
[Black "KononenkoD"]
[Result "1-0"]
[WhiteElo "2491"]
[BlackElo "2361"]
[TimeControl "180+1"]
[EndTime "11:06:26 PST"]
[Termination "banane_verte won by checkmate"]

1. e4 {[%clk 0:03:00.9]} 1... c6 {[%clk 0:03:00.2]} 2. d3 {[%clk 0:02:57.1]}
2... d5 {[%clk 0:03:01.1]} 3. exd5 {[%clk 0:02:50]} 3... cxd5 {[%clk 0:03:02]}
4. d4 {[%clk 0:02:50.8]} 4... Nc6 {[%clk 0:02:59.9]} 5. c3 {[%clk 0:02:49.9]}
5... Nf6 {[%clk 0:02:59.5]} 6. Bd3 {[%clk 0:02:49.2]} 6... e5 {[%clk 0:02:59.1]}
7. dxe5 {[%clk 0:02:47.6]} 7... Nxe5 {[%clk 0:02:59.5]} 8. Bf4 {[%clk
0:02:44.2]} 8... Bd6 {[%clk 0:02:53]} 9. Bxe5 {[%clk 0:02:43.1]} 9... Bxe5
{[%clk 0:02:53]} 10. Nf3 {[%clk 0:02:44]} 10... Bd6 {[%clk 0:02:43.5]} 11. h3
{[%clk 0:02:40.5]} 11... O-O {[%clk 0:02:42.9]} 12. O-O {[%clk 0:02:41]} 12...
Re8 {[%clk 0:02:40.3]} 13. Nbd2 {[%clk 0:02:39.9]} 13... Qb6 {[%clk 0:02:40.4]}
14. Qc2 {[%clk 0:02:37.3]} 14... Bd7 {[%clk 0:02:37.7]} 15. Rfe1 {[%clk
0:02:36.3]} 15... Rac8 {[%clk 0:02:33.2]} 16. Nd4 {[%clk 0:02:30.9]} 16... a5
{[%clk 0:02:16.9]} 17. N2f3 {[%clk 0:02:29.5]} 17... Bc5 {[%clk 0:02:11.2]} 18.
Nb3 {[%clk 0:02:05.2]} 18... Bd6 {[%clk 0:02:05.1]} 19. Nbd4 {[%clk 0:02:05.1]}
19... a4 {[%clk 0:02:03.3]} 20. a3 {[%clk 0:01:58.5]} 20... Bc5 {[%clk 0:02:01]}
21. Nf5 {[%clk 0:01:52.5]} 21... g6 {[%clk 0:01:35.7]} 22. N5d4 {[%clk
0:01:48.5]} 22... Kg7 {[%clk 0:01:34.5]} 23. Kf1 {[%clk 0:01:41.6]} 23... h5
{[%clk 0:01:30.8]} 24. Rxe8 {[%clk 0:01:40.9]} 24... Rxe8 {[%clk 0:01:30.1]} 25.
Re1 {[%clk 0:01:41.8]} 25... Rxe1+ {[%clk 0:01:18.6]} 26. Kxe1 {[%clk
0:01:42.7]} 26... Bd6 {[%clk 0:01:08.8]} 27. Kf1 {[%clk 0:01:40]} 27... Qd8
{[%clk 0:00:57.1]} 28. Qe2 {[%clk 0:01:31.3]} 28... Qe7 {[%clk 0:00:51.3]} 29.
Qxe7 {[%clk 0:01:29.9]} 29... Bxe7 {[%clk 0:00:52.2]} 30. Ne5 {[%clk 0:01:22.7]}
30... Be8 {[%clk 0:00:49.3]} 31. Nb5 {[%clk 0:01:09.5]} 31... Nd7 {[%clk
0:00:43.4]} 32. Nxd7 {[%clk 0:01:02.4]} 32... Bxd7 {[%clk 0:00:44.3]} 33. Nd4
{[%clk 0:01:02.7]} 33... Kf6 {[%clk 0:00:41.7]} 34. Ke2 {[%clk 0:00:58.2]} 34...
Ke5 {[%clk 0:00:41]} 35. Bb5 {[%clk 0:00:52.3]} 35... Bxb5+ {[%clk 0:00:39.4]}
36. Nxb5 {[%clk 0:00:53.2]} 36... Bc5 {[%clk 0:00:36.3]} 37. f3 {[%clk
0:00:38.1]} 37... Bb6 {[%clk 0:00:36.4]} 38. Kd3 {[%clk 0:00:29.2]} 38... h4
{[%clk 0:00:35.2]} 39. Ke2 {[%clk 0:00:23.3]} 39... f5 {[%clk 0:00:31.8]} 40.
Kd3 {[%clk 0:00:22.1]} 40... g5 {[%clk 0:00:31.5]} 41. Ke2 {[%clk 0:00:21.9]}
41... d4 {[%clk 0:00:28.5]} 42. Kd3 {[%clk 0:00:08.9]} 42... dxc3 {[%clk
0:00:27.3]} 43. Nxc3 {[%clk 0:00:09.8]} 43... Kf4 {[%clk 0:00:27.1]} 44. Ke2
{[%clk 0:00:09.2]} 44... Bd4 {[%clk 0:00:25.1]} 45. Nxa4 {[%clk 0:00:09.3]}
45... Kg3 {[%clk 0:00:19.7]} 46. Kf1 {[%clk 0:00:09.3]} 46... Kf4 {[%clk
0:00:16.7]} 47. Ke2 {[%clk 0:00:08.8]} 47... Kg3 {[%clk 0:00:12.7]} 48. Kf1
{[%clk 0:00:09.3]} 48... Kh2 {[%clk 0:00:11.6]} 49. Nc3 {[%clk 0:00:08.3]} 49...
Kg3 {[%clk 0:00:09.1]} 50. Ne2+ {[%clk 0:00:08.3]} 50... Kh2 {[%clk 0:00:08.9]}
51. Nxd4 {[%clk 0:00:09.2]} 51... g4 {[%clk 0:00:09.4]} 52. fxg4 {[%clk
0:00:08.7]} 52... f4 {[%clk 0:00:09.2]} 53. Nf3+ {[%clk 0:00:08.4]} 53... Kg3
{[%clk 0:00:09.4]} 54. g5 {[%clk 0:00:07.6]} 54... b5 {[%clk 0:00:10.1]} 55. g6
{[%clk 0:00:05.7]} 55... b4 {[%clk 0:00:11]} 56. Nxh4 {[%clk 0:00:06.3]} 56...
bxa3 {[%clk 0:00:09.7]} 57. bxa3 {[%clk 0:00:07.1]} 57... f3 {[%clk 0:00:09.6]}
58. Nxf3 {[%clk 0:00:04.5]} 58... Kf4 {[%clk 0:00:09.6]} 59. g7 {[%clk
0:00:05.3]} 59... Ke3 {[%clk 0:00:10.5]} 60. g8=Q {[%clk 0:00:05]} 60... Kf4
{[%clk 0:00:10.5]} 61. Qf7+ {[%clk 0:00:04.6]} 61... Ke3 {[%clk 0:00:11.4]} 62.
Qe6+ {[%clk 0:00:04.8]} 62... Kd3 {[%clk 0:00:12.3]} 63. Qe2+ {[%clk 0:00:04.1]}
63... Kc3 {[%clk 0:00:12.3]} 64. Qe3+ {[%clk 0:00:04.6]} 64... Kb2 {[%clk
0:00:12.3]} 65. Nh2 {[%clk 0:00:05.5]} 65... Ka2 {[%clk 0:00:13.2]} 66. a4
{[%clk 0:00:06]} 66... Kb2 {[%clk 0:00:14]} 67. a5 {[%clk 0:00:06.9]} 67... Kc2
{[%clk 0:00:14.6]} 68. a6 {[%clk 0:00:07.8]} 68... Kb1 {[%clk 0:00:15.5]} 69. a7
{[%clk 0:00:08.7]} 69... Kc2 {[%clk 0:00:15.2]} 70. a8=Q {[%clk 0:00:08.2]}
70... Kd1 {[%clk 0:00:16.1]} 71. Qa1+ {[%clk 0:00:07.9]} 71... Kc2 {[%clk
0:00:17]} 72. Qac1# {[%clk 0:00:08.3]} 1-0

[Event "*** Titled Tuesday Blitz"]
[Site "Chess.com"]
[Date "2020.12.01"]
[Round "6"]
[White "esapunov"]
[Black "mirciulica14"]
[Result "1/2-1/2"]
[WhiteElo "2797"]
[BlackElo "2600"]
[TimeControl "180+1"]
[EndTime "11:06:27 PST"]
[Termination "Game drawn by agreement"]

1. c4 {[%clk 0:03:00.9]} 1... Nf6 {[%clk 0:03:00.2]} 2. Nf3 {[%clk 0:03:00.5]}
2... e6 {[%clk 0:02:59.5]} 3. Nc3 {[%clk 0:03:00.2]} 3... Bb4 {[%clk 0:02:58.4]}
4. Qc2 {[%clk 0:03:00]} 4... O-O {[%clk 0:02:56]} 5. a3 {[%clk 0:03:00.2]} 5...
Bxc3 {[%clk 0:02:56.1]} 6. Qxc3 {[%clk 0:03:00.7]} 6... c5 {[%clk 0:02:56.6]} 7.
b4 {[%clk 0:02:59.6]} 7... b6 {[%clk 0:02:51.7]} 8. Bb2 {[%clk 0:02:58.8]} 8...
Bb7 {[%clk 0:02:47.2]} 9. e3 {[%clk 0:02:59]} 9... Nc6 {[%clk 0:02:40.9]} 10.
Be2 {[%clk 0:02:55]} 10... Rc8 {[%clk 0:02:39.3]} 11. O-O {[%clk 0:02:51.7]}
11... Qe7 {[%clk 0:02:36.8]} 12. d4 {[%clk 0:02:45.9]} 12... cxd4 {[%clk
0:02:32]} 13. Nxd4 {[%clk 0:02:44.2]} 13... Nxd4 {[%clk 0:02:07]} 14. Qxd4
{[%clk 0:02:43.8]} 14... d5 {[%clk 0:02:07.6]} 15. cxd5 {[%clk 0:02:35.1]} 15...
Bxd5 {[%clk 0:02:08.5]} 16. Rac1 {[%clk 0:02:33.9]} 16... Qb7 {[%clk 0:02:02]}
17. f3 {[%clk 0:02:32.1]} 17... Rxc1 {[%clk 0:01:59.3]} 18. Rxc1 {[%clk
0:02:31.5]} 18... Rc8 {[%clk 0:01:59.9]} 19. Rc3 {[%clk 0:02:26.5]} 19... Rxc3
{[%clk 0:01:56.9]} 20. Bxc3 {[%clk 0:02:24.1]} 20... Qc8 {[%clk 0:01:36.4]} 21.
e4 {[%clk 0:02:22.3]} 21... Bb7 {[%clk 0:01:36.2]} 22. b5 {[%clk 0:02:17]} 22...
Qd7 {[%clk 0:01:14.5]} 23. Qe5 {[%clk 0:02:03.2]} 23... Qc8 {[%clk 0:00:52.4]}
24. g4 {[%clk 0:01:54.6]} 24... Ne8 {[%clk 0:00:37.6]} 25. Kf2 {[%clk
0:01:40.7]} 25... Qc7 {[%clk 0:00:32.2]} 26. Qxc7 {[%clk 0:01:38.5]} 26... Nxc7
{[%clk 0:00:33.1]} 27. Be5 {[%clk 0:01:38.8]} 27... Na8 {[%clk 0:00:26.1]} 28.
Bb8 {[%clk 0:01:38.3]} 28... Kf8 {[%clk 0:00:20.9]} 29. Bxa7 {[%clk 0:01:37.8]}
29... Ke7 {[%clk 0:00:20.6]} 30. Bb8 {[%clk 0:01:38.1]} 30... f6 {[%clk
0:00:21.2]} 31. e5 {[%clk 0:01:35.9]} 31... Kd7 {[%clk 0:00:13.3]} 32. Bd6
{[%clk 0:01:26.4]} 32... Bd5 {[%clk 0:00:09]} 33. Ke3 {[%clk 0:01:20.5]} 33...
f5 {[%clk 0:00:04.9]} 34. Bf8 {[%clk 0:01:10.7]} 34... g6 {[%clk 0:00:03.4]} 35.
h4 {[%clk 0:01:04.6]} 35... Nc7 {[%clk 0:00:03.6]} 36. Kd4 {[%clk 0:01:03.2]}
36... Ne8 {[%clk 0:00:02.2]} 37. Bb4 {[%clk 0:01:00]} 37... Ng7 {[%clk 0:00:01]}
38. Bd2 {[%clk 0:00:58.2]} 38... fxg4 {[%clk 0:00:01.3]} 39. fxg4 {[%clk
0:00:57.7]} 39... h5 {[%clk 0:00:01.1]} 40. gxh5 {[%clk 0:00:56.9]} 40... gxh5
{[%clk 0:00:01.1]} 41. Bg5 {[%clk 0:00:55.1]} 41... Nf5+ {[%clk 0:00:01.6]} 42.
Kc3 {[%clk 0:00:54.6]} 42... Ng7 {[%clk 0:00:02]} 43. Be3 {[%clk 0:00:51.2]}
43... Nf5 {[%clk 0:00:02.3]} 44. Bf2 {[%clk 0:00:50.5]} 44... Ng7 {[%clk
0:00:02.7]} 45. Bxb6 {[%clk 0:00:50]} 45... Be4 {[%clk 0:00:02.8]} 46. Bf2
{[%clk 0:00:49.2]} 46... Bg6 {[%clk 0:00:03.7]} 47. a4 {[%clk 0:00:48.9]} 47...
Nf5 {[%clk 0:00:04.3]} 48. a5 {[%clk 0:00:49.1]} 48... Ne7 {[%clk 0:00:05.2]}
49. Kc4 {[%clk 0:00:47.4]} 49... Kc8 {[%clk 0:00:05.4]} 50. Kc5 {[%clk
0:00:47.5]} 50... Be4 {[%clk 0:00:06.2]} 51. a6 {[%clk 0:00:47.5]} 51... Kb8
{[%clk 0:00:06.6]} 52. Kd6 {[%clk 0:00:45.9]} 52... Nc8+ {[%clk 0:00:07.5]} 53.
Kc5 {[%clk 0:00:45.4]} 53... Na7 {[%clk 0:00:07.8]} 54. b6 {[%clk 0:00:44.4]}
54... Nc8 {[%clk 0:00:08.5]} 55. b7 {[%clk 0:00:43.2]} 55... Ne7 {[%clk
0:00:04.5]} 56. Bxh5 {[%clk 0:00:39.3]} 56... Bd3 {[%clk 0:00:04.4]} 57. Kd6
{[%clk 0:00:29]} 57... Nf5+ {[%clk 0:00:02.6]} 58. Kc6 {[%clk 0:00:25.7]} 58...
Bxa6 {[%clk 0:00:02.3]} 59. Kd7 {[%clk 0:00:21.6]} 59... Bxb7 {[%clk 0:00:01.2]}
60. Bg4 {[%clk 0:00:21.3]} 60... Bc8+ {[%clk 0:00:01.7]} 61. Ke8 {[%clk
0:00:21.5]} 61... Ng7+ {[%clk 0:00:01.6]} 62. Kf7 {[%clk 0:00:20.9]} 62... Nf5
{[%clk 0:00:02.2]} 63. h5 {[%clk 0:00:20.7]} 63... Nh6+ {[%clk 0:00:02.1]} 64.
Kg7 {[%clk 0:00:17.2]} 64... Nxg4 {[%clk 0:00:03]} 65. Bg3 {[%clk 0:00:17.6]}
65... Kc7 {[%clk 0:00:03.1]} 66. Kg6 {[%clk 0:00:17.9]} 66... Kd7 {[%clk
0:00:03.3]} 67. Kg5 {[%clk 0:00:18.6]} 67... Bb7 {[%clk 0:00:02.8]} 68. h6
{[%clk 0:00:17.7]} 68... Nxh6 {[%clk 0:00:02.4]} 69. Kxh6 {[%clk 0:00:18.1]}
69... Be4 {[%clk 0:00:03.1]} 70. Kg7 {[%clk 0:00:18.1]} 70... Bf5 {[%clk
0:00:04]} 71. Kf6 {[%clk 0:00:18.3]} 71... Kc6 {[%clk 0:00:04.9]} 1/2-1/2